fUST/lending_fUST_20250702
["ID","MTS","AMOUNT","RATE_DAILY","PERIOD"]
[368994578,1751428248122,-460.0,0.00018642,2]
[368994579,1751428248132,-460.0,0.00018642,2]
[368994581,1751428248141,-151.0,0.00018642,2]
[368994583,1751428248151,-460.0,0.00018642,2]
[368994585,1751428248160,-2090.96,0.00018642,2]
[368994587,1751428248170,-460.0,0.00018642,2]
[368994589,1751428248180,-364.234463,0.00018642,2]
[368994591,1751428248189,-364.234463,0.00018642,2]
[368994593,1751428248199,-234.353555,0.00018642,2]
[368994595,1751428248209,-234.353555,0.00018642,2]
[368994597,1751428248219,-151.0,0.00018642,2]
[368994607,1751428248228,-460.0,0.00018642,2]
[368994609,1751428248317,-151.0,0.00018642,2]
[368994611,1751428248328,-441.87653,0.00018642,2]
[368994613,1751428248338,-441.87653,0.00018642,2]
[368994615,1751428248347,-460.0,0.00018642,2]
[368994617,1751428248357,-460.0,0.00018642,2]
[368994619,1751428248366,-151.0,0.00018642,2]
[368994621,1751428248376,-460.0,0.00018642,2]
[368994623,1751428248386,-460.0,0.00018642,2]
[368994625,1751428248395,-460.0,0.00018642,2]
[368994627,1751428248405,-485.46,0.00018642,2]
[368994629,1751428248414,-4166.15,0.00018642,2]
[368994631,1751428248423,-1076.06,0.00018642,2]
[368994633,1751428248433,-460.0,0.00018642,2]
[368994635,1751428248442,-460.0,0.00018642,2]
[368994637,1751428248451,-460.0,0.00018642,2]
[368994639,1751428248460,-151.0,0.00018643,2]
[368994641,1751428248469,-152.327794,0.00018643,2]
[368994643,1751428248479,-570.815948,0.00018643,2]
[368994645,1751428248494,-152.327794,0.00018643,2]
[368994647,1751428248503,-822.194892,0.00018643,2]
[368994649,1751428248513,-570.815948,0.00018643,2]
[368994651,1751428248522,-647.508668,0.00018643,2]
[368994653,1751428248533,-151.0,0.00018643,2]
[368994655,1751428248543,-151.0,0.00018643,2]
[368994657,1751428248553,-1120.80462,0.00018643,2]
[368994659,1751428248564,-1120.80462,0.00018643,2]
[368994661,1751428248573,-183.562694,0.00018643,2]
[368994663,1751428248583,-183.562694,0.00018643,2]
[368994665,1751428248592,-151.0,0.00018643,2]
[368994667,1751428248602,-546.95,0.00018666,2]
[368994669,1751428248611,-460.0,0.00018666,2]
[368994671,1751428248622,-493.253258,0.00018667,2]
[368994673,1751428248632,-493.253258,0.00018667,2]
[368994675,1751428248641,-269.761555,0.00018667,2]
[368994677,1751428248651,-151.0,0.00018667,2]
[368994678,1751428248661,-207.059789,0.00018667,2]
[368994680,1751428248670,-207.059789,0.00018667,2]
[368994682,1751428248679,-151.0,0.000187,2]
[368994684,1751428248688,-1480.25366966,0.00018723,2]
[368994686,1751428248698,-3296.05118794,0.00018728,2]
[368994688,1751428248708,-460.0,0.00018811,2]
[368994690,1751428248717,-1158.83,0.00018811,2]
[368994692,1751428248727,-752.34,0.00018813,2]
[368994694,1751428248737,-1771.08,0.00018813,2]
[368994696,1751428248747,-460.0,0.00018813,2]
[368994698,1751428248757,-460.0,0.00018813,2]
[368994700,1751428248766,-460.0,0.00018813,2]
[368994702,1751428248775,-1157.71,0.00018813,2]
[368994704,1751428248785,-1616.62,0.00018813,2]
[368994706,1751428248795,-1898.72,0.00018813,2]
[368994708,1751428248804,-460.0,0.00018813,2]
[368994710,1751428248813,-1046.41,0.00018813,2]
[368994712,1751428248823,-591.05315351,0.00018813,2]
[368994714,1751428248832,-460.0,0.00018813,2]
[368994716,1751428248841,-460.0,0.00018813,2]
[368994718,1751428248851,-460.0,0.00018813,2]
[368994720,1751428248861,-1307.17,0.00018813,2]
[368994722,1751428248870,-465.18,0.00018813,2]
[368994724,1751428248879,-460.0,0.00018813,2]
[368994726,1751428248889,-284.50404704,0.00018816,2]
[368994728,1751428248899,-460.0,0.00018816,2]
[368994730,1751428248908,-460.0,0.00018816,2]
[368994732,1751428248917,-460.0,0.00018816,2]
[368994734,1751428248927,-460.0,0.00018816,2]
[368994736,1751428248937,-544.36,0.00018816,2]
[368994738,1751428248946,-460.0,0.00018816,2]
[368994740,1751428248955,-460.0,0.00018816,2]
[368994742,1751428248965,-2299.17,0.00018816,2]
[368994743,1751428248974,-460.0,0.00018816,2]
[368994745,1751428248983,-460.0,0.00018816,2]
[368994747,1751428248992,-624.02,0.00018816,2]
[368994748,1751428249002,-614.54,0.00018816,2]
[368994750,1751428249011,-460.0,0.00018816,2]
[368994752,1751428249020,-460.0,0.00018816,2]
[368994754,1751428249029,-460.0,0.00018816,2]
[368994755,1751428249039,-460.0,0.00018816,2]
[368994757,1751428249048,-460.0,0.00018816,2]
[368994759,1751428249057,-460.0,0.00018817,2]
[368994760,1751428249067,-3147.41,0.00018817,2]
[368994762,1751428249076,-460.0,0.00018817,2]
[368994764,1751428249087,-460.0,0.00018817,2]
[368994766,1751428249096,-765.74,0.00018817,2]
[368994767,1751428249105,-460.0,0.00018817,2]
[368994769,1751428249114,-1048.77,0.00018817,2]
[368994771,1751428249124,-708.63,0.00018817,2]
[368994773,1751428249133,-460.0,0.00018817,2]
[368994774,1751428249143,-1327.44,0.00018817,2]
[368994776,1751428249153,-460.0,0.00018817,2]
[368994778,1751428249162,-862.22,0.00018817,2]
[368994780,1751428249171,-1091.03,0.00018817,2]
[368994781,1751428249181,-1025.52169603,0.000189,2]
[368994798,1751428249380,-1364.87301754,0.000189,2]
[368994800,1751428249392,-1893.706399,0.000189,2]
[368994801,1751428249402,-460.0,0.00018916,2]
[368994803,1751428249412,-460.0,0.00018916,2]
[368994805,1751428249422,-460.0,0.00018916,2]
[368994807,1751428249431,-2090.96,0.00018916,2]
[368994809,1751428249440,-294.59973325,0.00018916,2]
[368994810,1751428249450,-460.0,0.00018916,2]
[368994812,1751428249459,-460.0,0.00018916,2]
[368994814,1751428249469,-460.0,0.00018916,2]
[368994816,1751428249478,-460.0,0.00018916,2]
[368994817,1751428249490,-460.0,0.00018916,2]
[368994819,1751428249500,-460.0,0.00018916,2]
[368994821,1751428249509,-485.46,0.00018916,2]
[368994823,1751428249519,-4166.15,0.00018916,2]
[368994825,1751428249528,-1076.06,0.00018916,2]
[368994827,1751428249538,-460.0,0.00018916,2]
[368994829,1751428249547,-460.0,0.00018916,2]
[368994830,1751428249556,-460.0,0.00018916,2]
[368994832,1751428249568,-500.0,0.00018936,2]
[368994834,1751428249578,-151.0,0.00018939,2]
[368994836,1751428249587,-546.95,0.0001894,2]
[368994838,1751428249596,-460.0,0.0001894,2]
[368994839,1751428249606,-151.0,0.00018945,2]
[368994841,1751428249615,-151.0,0.00018945,2]
[368994843,1751428249624,-160.0,0.00018954,2]
[368994845,1751428249633,-160.0,0.00018954,2]
[368994846,1751428249642,-160.0,0.00018954,2]
[368994848,1751428249651,-230.34465076,0.00018954,2]
[368994850,1751428249661,-215.04179405,0.00018954,2]
[368994852,1751428249670,-160.0,0.00018954,2]
[368994853,1751428249679,-847.65867985,0.00018954,2]
[368994855,1751428249688,-837.27862799,0.00018954,2]
[368994857,1751428249698,-213.90888375,0.00018954,2]
[368994859,1751428249707,-160.0,0.00018954,2]
[368994861,1751428249716,-160.0,0.00018955,2]
[368994862,1751428249726,-160.0,0.00018955,2]
[368994864,1751428249735,-12573.65100011,0.00018955,2]
[368994866,1751428249744,-151.0,0.00018955,2]
[368994868,1751428249754,-151.0,0.00018955,2]
[368994870,1751428249764,-151.0,0.00018955,2]
[368994871,1751428249773,-151.0,0.00018955,2]
[368994873,1751428249782,-834.87621,0.00018955,2]
[368994875,1751428249792,-834.87621,0.00018955,2]
[368994877,1751428249801,-1000.0,0.00018968,2]
[368994879,1751428249810,-3296.05118794,0.00019003,2]
[368994882,1751428249830,-460.0,0.00019085,2]
[368994884,1751428249847,-1158.83,0.00019085,2]
[368994886,1751428249865,-752.34,0.00019087,2]
[368994889,1751428249884,-1771.08,0.00019087,2]
[368994892,1751428249904,-460.0,0.00019087,2]
[368994894,1751428249921,-460.0,0.00019087,2]
[368994897,1751428249938,-1157.71,0.00019087,2]
[368994899,1751428249955,-1616.62,0.00019087,2]
[368994901,1751428249970,-1898.72,0.00019087,2]
[368994904,1751428249985,-460.0,0.00019087,2]
[368994906,1751428250003,-1046.41,0.00019087,2]
[368994909,1751428250023,-460.0,0.00019087,2]
[368994911,1751428250038,-460.0,0.00019087,2]
[368994913,1751428250052,-460.0,0.00019087,2]
[368994916,1751428250070,-1307.17,0.00019087,2]
[368994918,1751428250084,-465.18,0.00019087,2]
[368994920,1751428250100,-460.0,0.00019087,2]
[368994923,1751428250112,-400.45057112,0.0001909,2]
[368994925,1751428250128,-460.0,0.0001909,2]
[368994927,1751428250142,-460.0,0.0001909,2]
[368994929,1751428250157,-460.0,0.0001909,2]
[368994932,1751428250172,-544.36,0.0001909,2]
[368994934,1751428250186,-460.0,0.0001909,2]
[368994936,1751428250201,-460.0,0.0001909,2]
[368994939,1751428250216,-2299.17,0.0001909,2]
[368994941,1751428250230,-508.82566183,0.0001909,2]
[368994943,1751428250245,-460.0,0.0001909,2]
[368994946,1751428250259,-624.02,0.0001909,2]
[368994948,1751428250274,-614.54,0.0001909,2]
[368994950,1751428250288,-460.0,0.0001909,2]
[368994952,1751428250303,-214.91918043,0.0001909,2]
[368994954,1751428250318,-460.0,0.0001909,2]
[368994956,1751428250329,-460.0,0.0001909,2]
[368994958,1751428250339,-460.0,0.0001909,2]
[368994960,1751428250348,-3147.41,0.00019091,2]
[368994962,1751428250357,-460.0,0.00019091,2]
[368994964,1751428250367,-460.0,0.00019091,2]
[368994965,1751428250376,-765.74,0.00019091,2]
[368994967,1751428250386,-460.0,0.00019091,2]
[368994969,1751428250395,-1048.77,0.00019091,2]
[368994971,1751428250405,-708.63,0.00019091,2]
[368994973,1751428250414,-151.0,0.00019091,2]
[368994975,1751428250423,-151.0,0.00019091,2]
[368994976,1751428250432,-460.0,0.00019091,2]
[368994978,1751428250442,-1327.44,0.00019091,2]
[368994980,1751428250451,-151.0,0.00019091,2]
[368994982,1751428250461,-460.0,0.00019091,2]
[368994984,1751428250470,-151.0,0.00019091,2]
[368994986,1751428250480,-862.22,0.00019091,2]
[368994988,1751428250500,-1091.03,0.00019091,2]
[368994989,1751428250518,-226.864927,0.00019091,2]
[368995008,1751428250725,-226.864927,0.00019091,2]
[368995010,1751428250736,-571.82085049,0.00019157,2]
[368995012,1751428250746,-266.268357,0.00019178,2]
[368995013,1751428250756,-152.673109,0.00019178,2]
[368995015,1751428250765,-173.72017,0.00019178,2]
[368995017,1751428250775,-173.72017,0.00019178,2]
[368995019,1751428250785,-493.253258,0.00019178,2]
[368995021,1751428250797,-493.253258,0.00019178,2]
[368995023,1751428250814,-1324.257229,0.00019178,2]
[368995025,1751428250824,-1324.257229,0.00019178,2]
[368995027,1751428250833,-158.485401,0.00019178,2]
[368995029,1751428250842,-158.485401,0.00019178,2]
[368995030,1751428250852,-151.56747517,0.00019178,2]
[368995032,1751428250861,-151.45489432,0.00019178,2]
[368995034,1751428250870,-229.054939,0.00019178,2]
[368995036,1751428250879,-151.0,0.00019178,2]
[368995038,1751428250890,-152.221555,0.00019178,2]
[368995040,1751428250899,-151.0,0.00019178,2]
[368995041,1751428250909,-151.0,0.00019178,2]
[368995043,1751428250919,-151.844872,0.00019178,2]
[368995045,1751428250928,-292.12744,0.00019178,2]
[368995047,1751428250938,-460.0,0.0001919,2]
[368995049,1751428250947,-460.0,0.0001919,2]
[368995051,1751428250956,-460.0,0.0001919,2]
[368995052,1751428250966,-2090.96,0.0001919,2]
[368995054,1751428250975,-460.0,0.0001919,2]
[368995056,1751428250984,-460.0,0.0001919,2]
[368995058,1751428250993,-460.0,0.0001919,2]
[368995060,1751428251003,-460.0,0.0001919,2]
[368995061,1751428251012,-460.0,0.0001919,2]
[368995063,1751428251022,-295.37190981,0.0001919,2]
[368995065,1751428251031,-151.0,0.0001919,2]
[368995067,1751428251041,-485.46,0.0001919,2]
[368995069,1751428251050,-151.0,0.0001919,2]
[368995071,1751428251059,-4166.15,0.0001919,2]
[368995072,1751428251069,-195.525905,0.0001919,2]
[368995074,1751428251079,-175.120717,0.0001919,2]
[368995076,1751428251088,-151.0,0.0001919,2]
[368995078,1751428251097,-195.525905,0.0001919,2]
[368995080,1751428251106,-175.120717,0.0001919,2]
[368995082,1751428251116,-151.0,0.0001919,2]
[368995083,1751428251125,-235.588714,0.0001919,2]
[368995085,1751428251134,-151.0,0.0001919,2]
[368995087,1751428251143,-235.588714,0.0001919,2]
[368995089,1751428251152,-1076.06,0.0001919,2]
[368995091,1751428251161,-472.152101,0.0001919,2]
[368995092,1751428251171,-1229.048926,0.0001919,2]
[368995094,1751428251180,-1229.048926,0.0001919,2]
[368995096,1751428251190,-151.0,0.0001919,2]
[368995098,1751428251199,-1217.184091,0.0001919,2]
[368995100,1751428251208,-460.0,0.0001919,2]
[368995102,1751428251217,-1217.184091,0.0001919,2]
[368995104,1751428251227,-280.838703,0.0001919,2]
[368995106,1751428251236,-280.838703,0.0001919,2]
[368995108,1751428251245,-546.95,0.00019214,2]
[368995110,1751428251254,-460.0,0.00019214,2]
[368995111,1751428251263,-151.0,0.00019215,2]
[368995112,1751428251272,-151.0,0.00019215,2]
[368995113,1751428251281,-180.123262,0.00019215,2]
[368995114,1751428251290,-180.123262,0.00019215,2]
[368995115,1751428251299,-2876.79141,0.00019215,2]
[368995116,1751428251308,-2876.79141,0.00019215,2]
[368995117,1751428251317,-151.623645,0.00019215,2]
[368995118,1751428251326,-3296.05118794,0.00019279,2]
[368995119,1751428251335,-151.0,0.00019329,2]
[368995120,1751428251344,-151.0,0.00019329,2]
[368995121,1751428251354,-151.0,0.00019329,2]
[368995122,1751428251363,-289.781194,0.00019329,2]
[368995123,1751428251372,-289.781194,0.00019329,2]
[368995124,1751428251384,-151.0,0.00019329,2]
[368995125,1751428251395,-318.325395,0.00019329,2]
[368995126,1751428251405,-318.325395,0.00019329,2]
[368995127,1751428251414,-494.501349,0.00019329,2]
[368995128,1751428251423,-494.501349,0.00019329,2]
[368995129,1751428251434,-153.59309865,0.00019329,2]
[368995130,1751428251443,-460.0,0.00019359,2]
[368995131,1751428251453,-1158.83,0.00019359,2]
[368995132,1751428251463,-752.34,0.00019361,2]
[368995133,1751428251472,-1771.08,0.00019361,2]
[368995134,1751428251482,-460.0,0.00019361,2]
[368995135,1751428251495,-460.0,0.00019361,2]
[368995136,1751428251504,-1157.71,0.00019361,2]
[368995137,1751428251513,-1616.62,0.00019361,2]
[368995138,1751428251522,-1898.72,0.00019361,2]
[368995139,1751428251533,-460.0,0.00019361,2]
[368995140,1751428251542,-1046.41,0.00019361,2]
[368995141,1751428251551,-460.0,0.00019361,2]
[368995142,1751428251560,-460.0,0.00019361,2]
[368995143,1751428251570,-460.0,0.00019361,2]
[368995145,1751428251581,-1307.17,0.00019361,2]
[368995146,1751428251590,-465.18,0.00019361,2]
[368995147,1751428251600,-460.0,0.00019361,2]
[368995149,1751428251609,-460.0,0.00019364,2]
[368995151,1751428251618,-460.0,0.00019364,2]
[368995153,1751428251627,-544.36,0.00019364,2]
[368995155,1751428251636,-460.0,0.00019364,2]
[368995157,1751428251645,-460.0,0.00019364,2]
[368995159,1751428251655,-2299.17,0.00019364,2]
[368995161,1751428251664,-460.0,0.00019364,2]
[368995163,1751428251673,-624.02,0.00019364,2]
[368995165,1751428251683,-614.54,0.00019364,2]
[368995167,1751428251692,-1480.25366966,0.00019364,2]
[368995169,1751428251701,-460.0,0.00019364,2]
[368995171,1751428251710,-460.0,0.00019364,2]
[368995173,1751428251720,-460.0,0.00019364,2]
[368995175,1751428251729,-460.0,0.00019364,2]
[368995177,1751428251739,-3147.41,0.00019365,2]
[368995179,1751428251749,-460.0,0.00019365,2]
[368995181,1751428251758,-460.0,0.00019365,2]
[368995183,1751428251768,-765.74,0.00019365,2]
[368995185,1751428251777,-460.0,0.00019365,2]
[368995187,1751428251787,-1048.77,0.00019365,2]
[368995189,1751428251796,-708.63,0.00019365,2]
[368995191,1751428251806,-460.0,0.00019365,2]
[368995193,1751428251815,-1327.44,0.00019365,2]
[368995195,1751428251825,-460.0,0.00019365,2]
[368995197,1751428251834,-862.22,0.00019365,2]
[368995199,1751428251843,-1091.03,0.00019365,2]
[368995201,1751428251853,-151.0,0.00019383,2]
[368995203,1751428251862,-364.234463,0.00019383,2]
[368995205,1751428251872,-364.234463,0.00019383,2]
[368995207,1751428251881,-234.353555,0.00019383,2]
[368995209,1751428251890,-234.353555,0.00019383,2]
[368995211,1751428251900,-151.0,0.00019383,2]
[368995213,1751428251909,-151.0,0.00019383,2]
[368995215,1751428251919,-441.87653,0.00019383,2]
[368995217,1751428251928,-441.87653,0.00019383,2]
[368995219,1751428251937,-166.67688,0.00019383,2]
[368995222,1751428251947,-151.0,0.00019464,2]
[368995223,1751428251956,-460.0,0.00019464,2]
[368995225,1751428251965,-460.0,0.00019464,2]
[368995227,1751428251974,-152.327794,0.00019464,2]
[368995229,1751428251984,-570.815948,0.00019464,2]
[368995231,1751428251993,-152.327794,0.00019464,2]
[368995234,1751428252003,-822.194892,0.00019464,2]
[368995236,1751428252012,-570.815948,0.00019464,2]
[368995238,1751428252021,-235.23342145,0.00019464,2]
[368995239,1751428252030,-647.508668,0.00019464,2]
[368995241,1751428252040,-2090.96,0.00019464,2]
[368995244,1751428252050,-151.0,0.00019464,2]
[368995245,1751428252059,-216.877534,0.00019464,2]
[368995248,1751428252070,-1120.80462,0.00019464,2]
[368995250,1751428252079,-1120.80462,0.00019464,2]
[368995251,1751428252089,-460.0,0.00019464,2]
[368995253,1751428252098,-460.0,0.00019464,2]
[368995255,1751428252108,-460.0,0.00019464,2]
[368995257,1751428252117,-183.562694,0.00019464,2]
[368995260,1751428252127,-460.0,0.00019464,2]
[368995262,1751428252136,-183.562694,0.00019464,2]
[368995264,1751428252146,-151.418913,0.00019464,2]
[368995266,1751428252156,-460.0,0.00019464,2]
[368995268,1751428252166,-485.46,0.00019464,2]
[368995269,1751428252175,-4166.15,0.00019464,2]
[368995272,1751428252185,-1076.06,0.00019464,2]
[368995274,1751428252194,-487.25594319,0.00019464,2]
[368995276,1751428252204,-1000.0,0.00019484,2]
[368995278,1751428252214,-546.95,0.00019488,2]
[368995280,1751428252223,-460.0,0.00019488,2]
[368995282,1751428252233,-670.59059892,0.00019517,2]
[368995284,1751428252242,-151.0,0.00019555,2]
[368995286,1751428252252,-207.059789,0.00019555,2]
[368995288,1751428252261,-207.059789,0.00019555,2]
[368995290,1751428252271,-3296.05118794,0.00019555,2]
[368995292,1751428252280,-460.0,0.00019633,2]
[368995294,1751428252289,-1158.83,0.00019633,2]
[368995296,1751428252298,-752.34,0.00019635,2]
[368995298,1751428252307,-1771.08,0.00019635,2]
[368995300,1751428252318,-460.0,0.00019635,2]
[368995302,1751428252329,-1157.71,0.00019635,2]
[368995304,1751428252338,-1616.62,0.00019635,2]
[368995306,1751428252348,-1898.72,0.00019635,2]
[368995308,1751428252357,-460.0,0.00019635,2]
[368995310,1751428252366,-1046.41,0.00019635,2]
[368995312,1751428252376,-460.0,0.00019635,2]
[368995314,1751428252385,-460.0,0.00019635,2]
[368995316,1751428252394,-460.0,0.00019635,2]
[368995318,1751428252404,-1307.17,0.00019635,2]
[368995320,1751428252413,-465.18,0.00019635,2]
[368995322,1751428252423,-460.0,0.00019635,2]
[368995324,1751428252432,-460.0,0.00019638,2]
[368995326,1751428252442,-460.0,0.00019638,2]
[368995328,1751428252451,-544.36,0.00019638,2]
[368995330,1751428252461,-460.0,0.00019638,2]
[368995332,1751428252470,-460.0,0.00019638,2]
[368995334,1751428252480,-2299.17,0.00019638,2]
[368995336,1751428252494,-624.02,0.00019638,2]
[368995339,1751428252503,-614.54,0.00019638,2]
[368995341,1751428252513,-460.0,0.00019638,2]
[368995342,1751428252522,-460.0,0.00019638,2]
[368995345,1751428252534,-460.0,0.00019638,2]
[368995347,1751428252544,-460.0,0.00019638,2]
[368995349,1751428252555,-3147.41,0.00019639,2]
[368995351,1751428252565,-460.0,0.00019639,2]
[368995353,1751428252576,-460.0,0.00019639,2]
[368995355,1751428252586,-765.74,0.00019639,2]
[368995357,1751428252595,-460.0,0.00019639,2]
[368995359,1751428252605,-1048.77,0.00019639,2]
[368995361,1751428252614,-708.63,0.00019639,2]
[368995363,1751428252623,-460.0,0.00019639,2]
[368995365,1751428252634,-1327.44,0.00019639,2]
[368995367,1751428252643,-460.0,0.00019639,2]
[368995369,1751428252654,-862.22,0.00019639,2]
[368995371,1751428252664,-1091.03,0.00019639,2]
[368995373,1751428252673,-460.0,0.00019738,2]
[368995375,1751428252683,-460.0,0.00019738,2]
[368995377,1751428252692,-2090.96,0.00019738,2]
[368995379,1751428252702,-460.0,0.00019738,2]
[368995381,1751428252712,-210.25934394,0.00019738,2]
[368995383,1751428252722,-460.0,0.00019738,2]
[368995385,1751428252732,-460.0,0.00019738,2]
[368995387,1751428252742,-460.0,0.00019738,2]
[368995389,1751428252752,-485.46,0.00019738,2]
[368995391,1751428252761,-4166.15,0.00019738,2]
[368995393,1751428252771,-1076.06,0.00019738,2]
[368995395,1751428252780,-173.72017,0.00019761,2]
[368995397,1751428252789,-173.72017,0.00019761,2]
[368995399,1751428252799,-493.253258,0.00019761,2]
[368995401,1751428252808,-493.253258,0.00019761,2]
[368995403,1751428252818,-1324.257229,0.00019761,2]
[368995405,1751428252829,-1324.257229,0.00019761,2]
[368995407,1751428252839,-158.485401,0.00019761,2]
[368995409,1751428252850,-158.485401,0.00019761,2]
[368995411,1751428252859,-546.95,0.00019762,2]
[368995413,1751428252869,-460.0,0.00019762,2]
[368995415,1751428252879,-3296.05118794,0.00019831,2]
[368995417,1751428252888,-460.0,0.00019907,2]
[368995419,1751428252898,-1158.83,0.00019907,2]
[368995421,1751428252907,-752.34,0.00019909,2]
[368995423,1751428252917,-1771.08,0.00019909,2]
[368995425,1751428252927,-1157.71,0.00019909,2]
[368995427,1751428252937,-1616.62,0.00019909,2]
[368995429,1751428252946,-1898.72,0.00019909,2]
[368995431,1751428252955,-460.0,0.00019909,2]
[368995433,1751428252965,-1046.41,0.00019909,2]
[368995435,1751428252975,-460.0,0.00019909,2]
[368995437,1751428252985,-460.0,0.00019909,2]
[368995440,1751428252996,-460.0,0.00019909,2]
[368995441,1751428253007,-1307.17,0.00019909,2]
[368995444,1751428253017,-465.18,0.00019909,2]
[368995445,1751428253027,-460.0,0.00019909,2]
[368995448,1751428253037,-460.0,0.00019912,2]
[368995450,1751428253047,-460.0,0.00019912,2]
[368995452,1751428253057,-544.36,0.00019912,2]
[368995454,1751428253066,-460.0,0.00019912,2]
[368995455,1751428253079,-460.0,0.00019912,2]
[368995457,1751428253089,-2299.17,0.00019912,2]
[368995459,1751428253102,-624.02,0.00019912,2]
[368995461,1751428253111,-614.54,0.00019912,2]
[368995464,1751428253122,-460.0,0.00019912,2]
[368995465,1751428253131,-460.0,0.00019912,2]
[368995467,1751428253141,-460.0,0.00019912,2]
[368995469,1751428253151,-460.0,0.00019912,2]
[368995472,1751428253161,-3147.41,0.00019913,2]
[368995474,1751428253171,-460.0,0.00019913,2]
[368995476,1751428253182,-460.0,0.00019913,2]
[368995478,1751428253192,-765.74,0.00019913,2]
[368995480,1751428253201,-460.0,0.00019913,2]
[368995482,1751428253211,-151.0,0.00019913,2]
[368995484,1751428253221,-151.0,0.00019913,2]
[368995486,1751428253230,-151.0,0.00019913,2]
[368995488,1751428253240,-1048.77,0.00019913,2]
[368995490,1751428253250,-708.63,0.00019913,2]
[368995492,1751428253260,-151.0,0.00019913,2]
[368995494,1751428253270,-151.0,0.00019913,2]
[368995496,1751428253279,-486.07290917,0.00019913,2]
[368995498,1751428253290,-1327.44,0.00019913,2]
[368995500,1751428253300,-151.0,0.00019913,2]
[368995502,1751428253310,-460.0,0.00019913,2]
[368995504,1751428253322,-151.0,0.00019913,2]
[368995506,1751428253332,-862.22,0.00019913,2]
[368995508,1751428253343,-1091.03,0.00019913,2]
[368995510,1751428253353,-226.864927,0.00019913,2]
[368995512,1751428253363,-226.864927,0.00019913,2]
[368995531,1751428253540,-460.0,0.00020012,2]
[368995533,1751428253550,-460.0,0.00020012,2]
[368995536,1751428253563,-2090.96,0.00020012,2]
[368995538,1751428253579,-460.0,0.00020012,2]
[368995540,1751428253590,-460.0,0.00020012,2]
[368995542,1751428253599,-460.0,0.00020012,2]
[368995544,1751428253609,-460.53,0.00020012,2]
[368995546,1751428253619,-485.46,0.00020012,2]
[368995548,1751428253628,-151.0,0.00020012,2]
[368995550,1751428253637,-4166.15,0.00020012,2]
[368995552,1751428253646,-175.120717,0.00020012,2]
[368995554,1751428253655,-175.120717,0.00020012,2]
[368995556,1751428253665,-235.588714,0.00020012,2]
[368995558,1751428253674,-151.0,0.00020012,2]
[368995560,1751428253684,-235.588714,0.00020012,2]
[368995562,1751428253694,-1076.06,0.00020012,2]
[368995563,1751428253703,-1229.048926,0.00020012,2]
[368995566,1751428253713,-1229.048926,0.00020012,2]
[368995567,1751428253723,-151.0,0.00020012,2]
[368995570,1751428253733,-1217.184091,0.00020012,2]
[368995572,1751428253743,-1217.184091,0.00020012,2]
[368995574,1751428253754,-280.838703,0.00020012,2]
[368995576,1751428253763,-280.838703,0.00020012,2]
[368995578,1751428253772,-151.0,0.00020013,2]
[368995580,1751428253782,-195.525905,0.00020013,2]
[368995582,1751428253791,-151.0,0.00020013,2]
[368995584,1751428253801,-195.525905,0.00020013,2]